bitfinex/quotes_ETHUSD_20220123
["timestamp","ask_amount","ask_price","bid_price","bid_amount"]
[1642956967183,0.03423756,2430.8,2430.7,1.36483799]
[1642956968080,0.03423756,2430.8,2430.7,7.23690973]
[1642956968282,0.03423756,2430.8,2430.7,11.49972515]
[1642956968481,0.03423756,2430.8,2430.7,7.23690973]
[1642956968682,0.17890792,2431.3,2430.8,4.11847512]
[1642956969084,0.592,2432.0,2431.0,0.012805]
[1642956969282,0.592,2432.3,2431.0,0.012805]
[1642956969500,7.282,2432.6,2431.0,0.012805]
[1642956969682,7.282,2432.6,2431.5,1.5]
[1642956970183,7.282,2432.6,2432.5,1.11992042]
[1642956970384,4.268,2432.6,2432.5,1.11992042]
[1642956970580,0.592,2432.6,2432.5,1.11992042]
[1642956971020,0.592,2432.6,2431.6,7.22567134]
[1642956971021,0.892,2432.6,2431.6,3.2124]
[1642956971221,1.192,2432.6,2431.6,3.2124]
[1642956971423,1.0,2432.9,2431.6,7.1178705]
[1642956971624,1.592,2432.9,2431.6,7.1306138]
[1642956971829,1.0,2432.9,2431.6,8.6306138]
[1642956972027,10.5257,2433.2,2432.2,1.30360436]
[1642956972233,2.9121,2433.2,2432.7,1.32471866]
[1642956972429,0.592,2433.2,2432.7,1.32471866]
[1642956973228,0.592,2433.2,2433.0,1.32392295]
[1642956973432,0.04,2433.4,2433.0,1.32392295]
[1642956974229,0.04,2433.4,2433.1,1.37004213]
[1642956977583,0.04,2433.4,2433.1,5.44573751]
[1642956977979,0.04,2433.4,2433.1,1.37004213]
[1642956990278,0.04,2433.4,2433.1,1.36860227]
[1642956996528,0.04,2433.4,2432.8,3.8337]
[1642956996727,0.592,2433.3,2432.8,3.8337]
[1642956997180,0.92565918,2433.3,2432.6,4.9943]
[1642956997381,1.22565918,2433.3,2432.2,1.1447]
[1642956997878,1.20521584,2433.2,2432.9,1.25383529]
[1642956998087,1.79721584,2433.2,2432.9,1.25383529]
[1642956998278,0.592,2433.2,2432.9,1.25383529]
[1642956999080,0.63365918,2433.3,2432.9,1.25383529]
[1642956999081,0.03365918,2433.3,2432.9,1.25383529]
[1642956999282,0.03365918,2433.3,2433.1,1.54054376]
[1642957001323,0.03365918,2433.3,2432.9,1.25383529]
[1642957005273,0.03365918,2433.3,2433.1,1.11917854]
[1642957006276,0.03365918,2433.3,2432.9,1.25383529]
[1642957010126,0.03365918,2433.3,2433.2,1.41725245]
[1642957010528,0.03365918,2433.3,2433.2,4.51725245]
[1642957011725,0.03365918,2433.3,2433.2,6.01725245]
[1642957014582,0.03365918,2433.3,2433.2,2.91725245]
[1642957014888,0.03365918,2433.3,2433.2,1.41616132]
[1642957015927,0.03365918,2433.3,2432.9,2.42253529]
[1642957016324,0.03365918,2433.3,2432.9,1.25383529]
[1642957016921,0.03365918,2433.3,2432.9,2.54381716]
[1642957019671,0.03365918,2433.3,2432.9,1.25383529]
[1642957019874,0.592,2433.2,2432.9,1.25383529]
[1642957020075,0.592,2433.2,2432.7,3.9025]
[1642957020076,0.892,2433.2,2432.7,3.9025]
[1642957020274,0.892,2433.2,2432.6,1.1581]
[1642957020473,0.592,2433.2,2432.4,1.5]
[1642957020673,0.892,2433.2,2432.6,1.53168271]
[1642957020878,0.592,2433.2,2432.6,1.53168271]
[1642957021274,0.892,2433.2,2432.6,1.53168271]
[1642957021580,0.892,2433.2,2432.7,1.39601658]
[1642957022179,0.03354453,2433.1,2432.7,1.39601658]
[1642957023424,0.03354453,2433.1,2433.0,1.34648093]
[1642957025324,0.03354453,2433.1,2433.0,3.99648093]
[1642957027281,0.07354453,2433.4,2433.0,3.99648093]
[1642957028283,0.07354453,2433.4,2433.1,1.11760595]
[1642957031827,0.07354453,2433.4,2433.1,1.25580592]
[1642957032827,0.07354453,2433.4,2433.3,7.5]
[1642957033029,0.07354453,2433.4,2433.3,9.5]
[1642957033929,0.07354453,2433.4,2433.3,7.5]
[1642957044382,0.07354453,2433.4,2433.3,1.5]
[1642957045183,0.07354453,2433.4,2433.3,5.65]
[1642957049675,0.07354453,2433.4,2433.3,4.15]
[1642957052077,0.07354453,2433.4,2433.3,6.15]
[1642957053088,0.07354453,2433.4,2433.2,1.5]
[1642957053726,0.07354453,2433.4,2433.1,3.11760595]
[1642957053926,0.07354453,2433.4,2433.1,1.11760595]
[1642957054131,0.00151721,2433.1,2432.8,3.2479]
[1642957054329,1.29981703,2432.9,2432.6,3.8812]
[1642957054629,1.29981703,2432.9,2432.4,2.0]
[1642957055029,1.29981703,2432.9,2432.1,0.13819997]
[1642957055230,1.29981703,2432.9,2432.6,1.52321105]
[1642957055626,2.29981703,2432.9,2432.6,1.52321105]
[1642957056128,1.0,2432.9,2432.6,1.52321105]
[1642957056528,0.592,2433.0,2432.6,1.52321105]
[1642957057178,1.97584055,2433.0,2432.6,1.52321105]
[1642957057381,0.03337252,2432.8,2432.6,1.52321105]
[1642957059180,0.03337252,2432.8,2432.6,1.52166144]
[1642957059379,0.03337252,2432.8,2432.7,1.37346058]
[1642957061626,7.252e-05,2432.8,2432.7,8.42346058]
[1642957061828,0.00151721,2433.1,2432.8,7.85]
[1642957062025,0.00151721,2433.1,2432.8,8.0143]
[1642957062628,0.00151721,2433.1,2432.8,8.6143]
[1642957062833,0.00266258,2434.1,2433.0,0.20551]
[1642957063036,3.0251,2434.2,2433.1,0.3]
[1642957063229,0.00266258,2434.3,2433.1,0.3]
[1642957063630,5.1522,2434.4,2433.1,0.3]
[1642957063829,5.1522,2434.4,2434.0,1.17008671]
[1642957064031,1.2613,2434.4,2434.0,1.17008671]
[1642957064430,0.04,2434.4,2434.0,1.17008671]
[1642957064678,0.04,2434.4,2433.9,1.96173001]
[1642957065277,0.04,2434.4,2433.9,1.20503001]
[1642957065478,1.04,2434.4,2433.9,1.20503001]
[1642957066679,1.04,2434.4,2433.7,1.3968196]
[1642957066880,1.04,2434.4,2433.4,5.0621]
[1642957068188,1.04,2434.4,2433.7,2.7100202]
[1642957070031,1.34,2434.4,2433.7,2.7100202]
[1642957070435,2.98174178,2434.4,2433.7,2.7100202]
[1642957070839,2.98174178,2434.4,2433.7,1.54909672]
[1642957071834,2.98174178,2434.4,2433.4,5.0621]
[1642957072077,7.51131791,2434.4,2433.4,5.0621]
[1642957072981,1.36612564,2434.1,2433.4,6.23194235]
[1642957073386,1.36612564,2434.1,2433.4,5.01574235]
[1642957074683,0.592,2434.3,2433.4,5.01574235]
[1642957075384,0.592,2434.3,2433.7,1.13727424]
[1642957076030,0.592,2434.3,2433.8,1.29760561]
[1642957077437,0.592,2434.3,2433.7,1.13727424]
[1642957077634,0.592,2434.3,2433.4,3.8459]
[1642957078939,0.60475652,2434.1,2433.4,6.47115396]
[1642957079580,0.592,2434.3,2433.4,6.47115396]
[1642957081082,0.592,2434.3,2433.8,1.36221156]
[1642957082387,0.592,2434.3,2433.4,5.20673112]
[1642957082586,0.892,2434.3,2433.4,5.20673112]
[1642957082788,1.192,2434.3,2433.4,5.20673112]
[1642957083187,0.592,2434.3,2433.4,5.20673112]
[1642957083429,0.592,2434.3,2433.7,1.30133911]
[1642957083634,0.892,2434.3,2433.7,1.30133911]
[1642957093136,1.192,2434.3,2433.7,1.30133911]
[1642957093340,0.892,2434.3,2433.7,1.30133911]
[1642957093739,0.3,2434.3,2433.7,1.30133911]
[1642957093936,6.8500152,2434.4,2433.7,1.30133911]
[1642957097684,6.2500152,2434.4,2433.7,1.30133911]
[1642957099136,1.39205421,2434.0,2433.1,0.01236281]
[1642957099336,1.39205421,2434.0,2433.0,3.2727]
[1642957099337,0.00084361,2433.1,2433.0,3.2727]
[1642957099737,0.00084361,2433.1,2432.9,6.8463]
[1642957099936,0.00084361,2433.1,2432.9,4.8463]
[1642957100338,0.00084361,2433.1,2432.9,3.6064]
[1642957100538,0.00084361,2433.1,2432.6,4.4053]
[1642957101737,0.00084361,2433.1,2432.9,1.13038443]
[1642957103807,0.00084361,2433.1,2432.6,4.4053]
[1642957104405,0.00084361,2433.1,2432.6,4.40420754]
[1642957104811,0.00084361,2433.1,2433.0,1.25824215]
[1642957105308,0.00084361,2433.1,2432.6,4.40420754]
[1642957106431,0.00084361,2433.1,2432.9,1.44974191]
[1642957107836,0.00084361,2433.1,2432.6,4.40420754]
[1642957108837,0.00084361,2433.1,2432.9,1.14004744]
[1642957109439,0.00084361,2433.1,2432.6,4.40420754]
[1642957109683,0.00084361,2433.1,2432.2,0.01297377]
[1642957110086,0.00084361,2433.1,2432.1,1.29909997]
[1642957110292,0.01282471,2433.0,2432.0,1.5]
[1642957110485,8.00782471,2433.0,2432.0,1.5]
[1642957110685,8.00782471,2433.0,2431.8,2.0]
[1642957110686,6.41404434,2432.1,2431.8,2.0]
[1642957110886,6.48231348,2432.1,2431.8,2.0]
[1642957111080,6.48231348,2432.1,2431.4,1.2256]
[1642957111081,1.0,2432.0,2431.4,1.2256]
[1642957111282,1.0,2432.0,2431.3,2.30290964]
[1642957111483,1.93231348,2432.1,2431.3,2.30290964]
[1642957112081,3.33955729,2432.1,2431.3,2.30290964]
[1642957112589,1.0,2432.0,2431.3,2.30290964]
[1642957112986,2.93231348,2432.1,2431.3,2.30290964]
[1642957113432,2.93231348,2432.1,2431.2,3.7787]
[1642957113633,2.93231348,2432.1,2430.8,3.1713]
[1642957113634,5.09692613,2432.0,2430.8,3.1713]
[1642957114137,1.0,2431.9,2430.8,1.1713]
[1642957114335,0.592,2431.8,2430.8,1.1713]
[1642957114536,1.31914151,2431.3,2430.8,1.1713]
[1642957114739,1.31914151,2431.3,2430.7,1.15834074]
[1642957114938,2.31914151,2431.3,2430.7,1.15834074]
[1642957115140,0.592,2431.4,2430.7,1.15834074]
[1642957117089,1.35025024,2431.3,2430.7,1.15834074]
[1642957119597,1.592,2431.4,2430.7,1.15834074]
[1642957119796,0.592,2431.4,2430.7,1.15834074]
[1642957120846,1.24132401,2431.5,2430.7,1.15834074]
[1642957122044,1.54132401,2431.5,2430.7,1.15834074]
[1642957124588,1.51027535,2431.1,2430.2,8.41194179]
[1642957124790,1.51027535,2431.1,2430.2,1.2153]
[1642957124791,1.81027535,2431.1,2430.2,1.2153]
[1642957124986,0.592,2431.0,2430.2,1.2153]
[1642957125389,1.592,2431.0,2430.2,1.2153]
[1642957125585,1.592,2431.0,2430.4,1.51562009]
[1642957125785,1.59100232,2431.0,2430.4,1.51562009]
[1642957128342,1.93957175,2431.0,2430.1,7.645]
[1642957128536,0.34856943,2430.9,2430.1,7.645]
[1642957128738,0.64856943,2430.9,2430.1,7.645]
[1642957128937,0.34856943,2430.8,2430.1,3.9747]
[1642957129136,0.592,2430.7,2430.1,3.9747]
[1642957129341,0.34856943,2430.6,2430.1,3.9747]
[1642957129535,0.64856943,2430.6,2429.8,2.37306492]
[1642957129736,1.87647237,2430.5,2429.9,1.33109448]
[1642957129935,0.34856943,2430.4,2429.5,3.9966]
[1642957130338,2.12790294,2430.5,2429.5,3.9966]
[1642957130936,2.12790294,2430.5,2429.5,5.9966]
[1642957131137,2.43330294,2430.5,2429.7,1.04438616]
[1642957131335,2.64570294,2430.5,2429.8,1.39913632]
[1642957131537,1.0,2430.4,2429.8,1.39913632]
[1642957132195,1.0,2430.4,2429.5,5.9966]
[1642957132592,4.46470227,2430.3,2429.5,2.0]
[1642957132796,0.592,2430.2,2429.5,2.0]
[1642957132992,1.592,2430.2,2429.0,6.8311]
[1642957133201,1.15243366,2429.7,2429.0,6.8311]
[1642957133402,1.15243366,2429.7,2429.0,3.7505]
[1642957133403,1.45243366,2429.7,2429.0,3.7505]
[1642957133792,0.892,2429.6,2428.7,1.17773406]
[1642957133993,1.45243366,2429.7,2428.7,1.17773406]
[1642957133994,5.35790416,2429.7,2429.6,1.784]
[1642957134198,7.342,2429.6,2428.4,0.1645]
[1642957134396,8.342,2429.6,2428.4,0.1645]
[1642957134593,1.0,2429.5,2428.4,0.1645]
[1642957134792,0.592,2429.4,2428.4,0.1645]
[1642957135396,4.97966424,2429.3,2428.4,0.1645]
[1642957135593,1.33242299,2428.8,2428.4,0.1645]
[1642957135849,1.63242299,2428.8,2428.3,1.52944292]
[1642957136133,1.63242299,2428.8,2428.3,1.47944292]
[1642957136734,1.63242299,2428.8,2428.0,1.1766]
[1642957136938,1.63242299,2428.8,2427.9,3.65819572]
[1642957136939,4.66066708,2428.7,2428.1,3.50215935]
[1642957137140,1.592,2428.6,2427.8,1.1715]
[1642957137341,1.592,2428.6,2427.9,3.50235172]
[1642957137740,0.4186,2428.7,2428.6,3.77599999]
[1642957138544,0.41732981,2428.7,2428.6,3.77599999]
[1642957140002,2.981e-05,2428.7,2428.6,3.77599999]
[1642957140201,1.2226,2429.9,2428.7,0.00077019]
[1642957140603,9.3435,2430.2,2428.7,3.50232473]
[1642957140807,7.5414,2430.2,2428.7,7.68712473]
[1642957141007,7.5414,2430.2,2428.8,3.70685926]
[1642957141203,3.56109441,2430.4,2428.8,3.70685926]
[1642957141204,3.56109441,2430.4,2429.9,1.51942243]
[1642957141703,3.56109441,2430.4,2429.2,0.13819997]
[1642957142106,3.51109441,2430.4,2429.2,0.13819997]
[1642957142506,3.51109441,2430.4,2429.9,2.66735311]
[1642957143107,0.3483,2431.1,2429.9,2.66735311]
[1642957143742,1.51597088,2431.0,2430.3,2.49096756]
[1642957143941,1.15744067,2431.1,2430.3,2.49096756]
[1642957143942,0.3483,2431.1,2430.3,2.49096756]
[1642957144345,0.3483,2431.1,2430.0,1.5]
[1642957144742,0.3483,2431.1,2429.8,1.5]
[1642957145344,1.15744067,2431.1,2430.4,1.29365843]
[1642957145644,0.6483,2431.1,2430.4,2.50572845]
[1642957146644,0.3483,2431.1,2430.4,2.50572845]
[1642957147888,0.6483,2431.1,2430.4,2.50572845]
[1642957149289,0.3483,2431.1,2430.4,2.50572845]
[1642957150088,0.3483,2431.1,2430.4,2.35572845]
[1642957151139,0.15,2431.0,2430.4,2.35572845]
[1642957151343,0.15,2431.0,2430.4,1.21207002]
[1642957153143,0.9483,2431.1,2430.4,1.21207002]
[1642957153543,0.6483,2431.1,2430.4,1.21207002]
[1642957154143,1.60744067,2431.1,2430.4,1.21207002]
[1642957154585,1.90744067,2431.1,2430.4,1.21207002]
[1642957155591,0.9483,2431.1,2430.4,1.21207002]
[1642957155787,0.6483,2431.1,2430.4,1.21207002]
[1642957156593,1.60744067,2431.1,2430.4,1.21207002]
[1642957156787,1.90744067,2431.1,2429.7,1.65037203]
[1642957156991,1.90744067,2431.1,2429.8,3.50034062]
[1642957157192,6.46009527,2431.0,2429.7,1.65037203]
[1642957157391,6.46009527,2431.0,2429.7,1.63819997]
[1642957157592,1.3,2430.9,2429.7,1.63819997]
[1642957157897,1.20551471,2430.2,2429.6,3.6197]
[1642957158091,1.20551471,2430.2,2429.4,2.55492658]
[1642957158092,1.50551471,2430.2,2429.4,2.55492658]
[1642957158340,1.50551471,2430.2,2429.4,1.31242658]
[1642957159345,1.50551471,2430.2,2429.2,0.13819997]
[1642957159346,1.80551471,2430.2,2429.2,0.13819997]
[1642957159541,2.39751471,2430.2,2429.2,0.08819997]
[1642957160340,2.39751471,2430.2,2429.2,1.24249789]
[1642957160341,1.29839048,2429.8,2429.2,1.24249789]
[1642957160742,1.59839048,2429.8,2429.2,1.24249789]
[1642957161540,1.59839048,2429.8,2428.8,3.9246]
[1642957161541,2.49039048,2429.8,2428.8,3.9246]
[1642957161749,2.49039048,2429.8,2428.7,0.00077019]
[1642957162193,1.34707181,2429.2,2428.7,0.00077019]
[1642957162397,1.93907181,2429.2,2428.7,0.00077019]
[1642957162595,2.53907181,2429.2,2428.7,0.00077019]
[1642957162996,1.0,2429.1,2428.7,0.00077019]
[1642957163794,0.592,2429.0,2428.7,0.00077019]
[1642957163992,0.3,2428.8,2428.7,0.00077019]
[1642957164194,0.3,2428.8,2428.6,3.72677018]
[1642957164399,1.3,2428.8,2428.6,3.72677018]
[1642957164596,1.3,2428.8,2428.6,1.11577421]
[1642957164597,5.042,2428.7,2428.6,1.11577421]
[1642957164796,9.68249608,2428.7,2428.6,1.11577421]
[1642957164996,6.342,2428.7,2428.6,1.11577421]
[1642957165195,3.40548664,2428.7,2428.6,1.11577421]
[1642957169691,8.15548664,2428.7,2428.6,1.11577421]
[1642957170090,12.66303018,2428.7,2428.6,1.11577421]
[1642957170288,7.85,2428.6,2427.5,3.91302211]
[1642957170497,0.01257457,2428.3,2427.1,0.00172211]
[1642957170691,0.592,2428.2,2427.1,3.81173927]
[1642957170896,0.542,2428.2,2427.0,3.64652211]
[1642957171091,0.842,2428.2,2427.0,3.64652211]
[1642957171291,1.142,2428.2,2427.0,3.64652211]
[1642957171492,1.44933455,2427.8,2427.2,1.2159683]
[1642957171793,1.44933455,2427.8,2427.0,3.64652211]
[1642957171794,2.34133455,2427.8,2427.0,3.64652211]
[1642957171991,2.64133455,2427.8,2426.8,1.1605]
[1642957172199,2.64133455,2427.8,2426.6,3.81001716]
[1642957172394,1.0,2427.7,2426.7,3.50416399]
[1642957172600,1.1634,2428.3,2427.8,3.73731446]
[1642957172795,0.592,2428.2,2427.8,3.73731446]
[1642957173195,1.592,2428.2,2427.8,3.73731446]
[1642957173441,0.592,2428.2,2427.8,3.73731446]
[1642957174846,7.995,2428.2,2427.8,3.73731446]
[1642957175040,2.38679939,2428.1,2427.8,3.73731446]
[1642957175242,0.592,2428.0,2427.8,3.73731446]
[1642957175842,7.85,2427.9,2427.1,3.8262]
[1642957176045,7.85,2427.9,2426.8,0.01263157]
[1642957176046,1.592,2427.8,2426.8,0.01263157]
[1642957176244,5.4365,2427.8,2426.8,0.01263157]
[1642957176443,6.0365,2427.8,2426.6,3.81001716]
[1642957176642,6.0365,2427.8,2427.0,1.29772828]
[1642957176842,2.192,2427.8,2427.0,1.29772828]
[1642957177084,2.192,2427.8,2427.0,1.24772828]
[1642957177085,1.192,2427.8,2427.0,1.24772828]
[1642957178096,1.242,2427.8,2426.5,3.727]
[1642957178296,1.242,2427.8,2426.5,3.677]
[1642957178496,7.403,2427.5,2426.5,3.677]
[1642957178697,0.592,2427.4,2426.5,3.677]
[1642957178996,1.592,2427.4,2426.5,3.677]
[1642957179700,1.592,2427.4,2426.4,1.54200706]
[1642957179903,1.592,2427.4,2426.0,49.95]
[1642957179904,8.43461,2427.3,2426.0,49.95]
[1642957180105,7.403,2427.0,2426.0,49.95]
[1642957180301,0.592,2426.9,2426.5,1.4852047]
[1642957180499,7.403,2426.7,2426.0,49.95]
[1642957180848,0.592,2426.6,2426.0,49.95]
[1642957181047,1.842,2426.6,2426.0,49.95]
[1642957181647,1.842,2426.6,2426.4,1.5602688]
[1642957182052,1.8269,2426.6,2426.0,49.95]
[1642957182251,4.52556964,2426.5,2426.0,49.95]
[1642957182453,0.592,2426.4,2426.0,49.95]
[1642957182657,1.592,2426.4,2426.0,49.95]
[1642957183051,0.592,2426.4,2426.0,49.95]
[1642957183251,0.892,2426.4,2426.0,49.95]
[1642957183456,4.31586028,2426.3,2426.0,49.95]
[1642957183652,1.592,2426.2,2426.0,41.69354]
[1642957183854,4.36839025,2426.1,2426.0,41.69354]
[1642957184052,6.56039025,2426.1,2426.0,41.69354]
[1642957184252,6.56039025,2426.1,2426.0,33.4371]
[1642957184452,2.192,2426.1,2426.0,33.4371]
[1642957184690,1.192,2426.1,2426.0,33.4371]
[1642957185491,0.592,2426.1,2426.0,33.4371]
[1642957186292,0.592,2426.1,2426.0,34.53035525]
[1642957186494,0.542,2426.1,2426.0,34.53035525]
[1642957186692,0.542,2426.1,2426.0,33.4371]
[1642957187197,0.842,2426.1,2426.0,33.4371]
[1642957187997,4.942,2426.1,2426.0,33.3871]
[1642957188437,2.142,2426.1,2426.0,33.3871]
[1642957188642,1.142,2426.1,2426.0,33.3871]
[1642957190445,4.292,2426.1,2426.0,33.3871]
[1642957190638,4.292,2426.1,2425.0,6.2158]
[1642957190639,7.85,2426.0,2425.0,6.2158]
[1642957190843,7.37471209,2425.9,2424.9,0.01]
[1642957191041,7.403,2425.7,2424.9,0.01]
[1642957191239,0.592,2425.6,2424.9,0.01]
[1642957191438,1.592,2425.6,2424.9,0.01]
[1642957191639,1.892,2425.6,2424.9,0.01]
[1642957191838,1.892,2425.6,2425.1,1.34194987]
[1642957192088,1.892,2425.6,2424.9,0.01]
[1642957192794,12.41978728,2425.7,2424.9,0.01]
[1642957192795,10.57049595,2425.7,2424.9,0.01]
[1642957193099,0.592,2425.6,2425.2,1.12094074]
[1642957193896,5.55845262,2426.1,2425.2,1.12094074]
[1642957194102,4.09652317,2426.5,2425.2,1.12094074]
[1642957194103,4.1536,2426.9,2426.0,0.0127015]
[1642957194301,4.1536,2426.9,2426.1,0.09396108]
[1642957194302,0.592,2426.8,2426.1,0.09396108]
[1642957194597,0.2566,2426.9,2426.1,0.09396108]
[1642957194999,0.2566,2426.9,2426.8,1.37047436]
[1642957195398,3.7752,2427.7,2426.9,0.04761453]
[1642957195606,1.1843,2427.8,2426.9,0.04761453]
[1642957195852,35.95537902,2427.9,2426.9,0.04761453]
[1642957196249,35.90537902,2427.9,2426.9,0.04761453]
[1642957196452,35.85537902,2427.9,2427.4,1.12094074]
[1642957197050,0.04,2428.1,2427.5,0.08956997]
[1642957197451,0.04,2428.1,2428.0,4.04126543]
[1642957197653,0.04,2428.1,2428.0,2.44635114]
[1642957197853,0.04,2428.1,2427.6,0.08073169]
[1642957198054,0.04,2428.1,2427.5,4.5247]
[1642957198258,7.47,2428.6,2427.6,4.14775366]
[1642957198457,7.47,2428.6,2427.9,0.01289802]
[1642957198653,7.47,2428.6,2428.0,2.1543125]
[1642957199064,7.47,2428.6,2428.0,2.392]
[1642957199255,0.04,2428.6,2428.1,3.94224366]
[1642957199456,0.0001,2428.6,2428.2,7.20846239]
[1642957199700,0.0001,2428.6,2428.5,9.35]
[1642957199897,0.165219,2429.1,2428.6,7.85]
[1642957200097,0.165219,2429.1,2428.7,0.592]
[1642957200501,0.165219,2429.1,2428.8,1.14580234]
[1642957200708,0.165219,2429.1,2428.9,0.592]
[1642957200909,0.165219,2429.1,2428.6,0.0008]
[1642957201703,0.592,2429.3,2428.6,1.45514954]
[1642957201901,1.30555134,2429.5,2428.6,0.0008]
[1642957202103,0.00531231,2429.2,2428.6,0.0008]
[1642957202305,0.592,2429.4,2428.6,0.0008]
[1642957202906,9.49114,2429.7,2428.6,0.0008]
[1642957202907,7.43,2429.7,2428.6,0.0008]
[1642957203108,7.43,2429.7,2428.6,1.20631]
[1642957203347,7.43,2429.7,2429.5,1.40218776]
[1642957203752,0.00531231,2429.6,2428.8,1.5]
[1642957203954,7.43,2429.7,2429.5,1.05913223]
[1642957204159,7.43,2429.7,2429.5,1.00913223]
[1642957204356,7.43,2429.7,2428.8,1.5]
[1642957204856,7.43,2429.7,2428.7,3.94224366]
[1642957205057,7.43,2429.7,2429.1,1.23501878]
[1642957205260,0.00531231,2429.2,2429.1,1.23501878]
[1642957205557,0.00531231,2429.2,2429.1,2.75731279]
[1642957207597,0.00531231,2429.2,2428.6,0.0008]
[1642957207805,1.592,2429.6,2428.6,0.0008]
[1642957207998,0.00531231,2428.9,2428.6,0.0008]
[1642957208200,1.892,2429.6,2428.6,0.0008]
[1642957208497,1.892,2429.6,2428.6,1.13726303]
[1642957208498,1.74815253,2429.5,2428.6,1.13726303]
[1642957209098,0.592,2429.5,2428.6,1.13726303]
[1642957209296,0.592,2429.5,2428.6,0.0008]
[1642957209496,1.6,2429.6,2429.0,0.44073484]
[1642957209698,0.495,2429.5,2429.0,0.44073484]
[1642957210303,1.5256657,2429.5,2429.0,0.44073484]
[1642957210500,7.85,2429.4,2428.6,0.0008]
[1642957210704,0.50713525,2429.3,2428.6,0.0008]
[1642957210949,0.00531231,2429.0,2427.5,3.9091329]
[1642957211148,1.03105,2428.6,2427.5,3.9091329]
[1642957211354,1.03105,2428.6,2427.5,0.00173018]
[1642957211355,0.3,2428.3,2427.5,0.00173018]
[1642957211550,0.3,2428.3,2427.2,3.90740272]
[1642957211754,0.795,2428.5,2427.2,3.90740272]
[1642957211952,1.095,2428.5,2427.2,3.90740272]
[1642957212149,0.795,2428.5,2427.2,3.90740272]
[1642957212354,1.11984184,2428.4,2427.3,1.49458619]
[1642957212554,0.00531231,2427.8,2427.3,1.49458619]
[1642957212756,1.11984184,2428.4,2427.8,0.01593692]
[1642957212757,1.41984184,2428.4,2427.8,0.01593692]
[1642957212954,0.3,2428.4,2427.8,0.01593692]
[1642957213153,1.795,2428.5,2427.8,0.01593692]
[1642957213154,1.095,2428.5,2427.8,0.01593692]
[1642957213352,2.095,2428.5,2427.8,0.01593692]
[1642957213958,1.095,2428.5,2427.8,0.01593692]
[1642957214154,0.00531231,2428.2,2427.8,0.01593692]
[1642957214454,0.495,2428.1,2427.8,0.01593692]
[1642957214890,0.795,2428.1,2427.8,0.01593692]
[1642957215091,2.117,2428.1,2427.8,0.01593692]
[1642957215496,2.117,2428.1,2426.9,0.08819997]
[1642957215497,7.85,2428.0,2426.9,0.08819997]
[1642957215697,0.495,2427.9,2426.9,0.08819997]
[1642957215897,1.495,2427.9,2426.9,0.08819997]
[1642957216097,1.795,2427.9,2426.9,0.08819997]
[1642957216298,1.31308428,2427.8,2426.9,0.08819997]
[1642957216500,0.495,2427.7,2426.9,0.08819997]
[1642957217094,0.00531231,2427.3,2426.9,0.08819997]
[1642957217297,0.6,2427.8,2426.9,0.08819997]
[1642957217298,0.495,2427.4,2426.9,0.08819997]
[1642957217695,0.795,2427.4,2426.9,0.08819997]
[1642957217897,0.495,2427.4,2426.9,0.08819997]
[1642957218099,0.495,2427.4,2427.2,0.90402859]
[1642957218740,0.00531231,2427.3,2427.2,0.90402859]
[1642957219145,0.00531231,2427.3,2427.2,2.41642781]
[1642957220148,0.00531231,2427.3,2427.2,5.26642781]
[1642957220750,0.00531231,2427.3,2427.2,2.41642781]
[1642957220946,0.00531231,2427.3,2427.2,0.90402859]
[1642957221348,0.00531231,2427.3,2426.9,0.10062838]
[1642957221654,0.00531231,2427.1,2426.9,0.08819997]
[1642957222097,0.795,2427.8,2426.9,1.56675847]
[1642957222291,0.795,2427.8,2426.9,0.08819997]
[1642957223291,0.00531231,2427.4,2426.9,1.53342601]
[1642957224091,0.00531231,2427.4,2426.9,0.08819997]
[1642957224295,4.92482206,2427.7,2426.9,0.08819997]
[1642957224492,5.71982206,2427.7,2426.8,0.13819997]
[1642957224691,1.0,2427.6,2426.8,0.13819997]
[1642957224892,0.00531231,2427.2,2426.8,0.13819997]
[1642957225095,0.495,2427.5,2426.6,0.02]
[1642957225096,4.89379399,2427.4,2426.6,0.02]
[1642957225292,5.68879399,2427.4,2426.6,0.02]
[1642957225494,1.0,2427.3,2426.6,0.02]
[1642957225952,0.495,2427.2,2426.6,0.02]
[1642957226151,5.24352256,2427.2,2426.6,0.02]
[1642957226358,0.00531231,2426.9,2426.6,0.02]
[1642957226553,0.495,2426.8,2426.6,0.02]
[1642957226759,1.0315,2427.5,2426.6,0.02]
[1642957226760,1.0,2427.7,2427.4,1.20387147]
[1642957226957,1.0,2427.7,2426.6,0.02]
[1642957227150,0.04999999,2428.0,2426.6,0.02]
[1642957227754,0.04999999,2428.0,2427.2,1.27214743]
[1642957227952,0.04999999,2428.0,2427.2,2.7255902]
[1642957229456,0.00531231,2427.6,2427.2,2.7255902]
[1642957229690,0.04999999,2428.0,2426.7,1.5]
[1642957230293,0.54499999,2428.0,2426.7,1.5]
[1642957230493,0.84499999,2428.0,2426.7,1.5]
[1642957230700,1.09288369,2427.5,2426.6,5.24527952]
[1642957230895,0.50031231,2427.4,2426.6,0.02]
[1642957231094,0.495,2427.4,2426.6,0.02]
[1642957231694,1.52653,2427.4,2426.6,0.02]
[1642957232102,2.61338181,2427.4,2426.6,0.02]
[1642957232294,1.61338181,2427.4,2426.6,0.02]
[1642957232593,0.00531231,2427.0,2426.6,0.02]
[1642957232794,0.495,2426.9,2426.6,0.02]
[1642957233094,0.495,2426.8,2426.6,0.02]
[1642957233344,0.795,2426.8,2426.6,0.02]
[1642957233844,1.095,2426.8,2426.6,0.02]
[1642957234049,0.00531231,2426.7,2426.6,0.02]
[1642957235049,4.21854231,2427.4,2426.6,0.02]
[1642957235248,0.495,2427.3,2426.6,0.02]
[1642957235651,0.795,2427.3,2426.6,0.02]
[1642957236053,1.095,2427.3,2426.6,1.16752737]